fUSD/lending_fUSD_20260116
["ID","MTS","AMOUNT","RATE_DAILY","PERIOD"]
[402195341,1768587038563,-848.7,0.00015335,2]
[402195343,1768587038573,-500.0,0.00015335,2]
[402195345,1768587038583,-205.54732385,0.00015354,2]
[402195348,1768587038593,-201.57755309,0.00015389,2]
[402195350,1768587038602,-1239.0,0.00015389,2]
[402195352,1768587038612,-500.0,0.00015389,2]
[402195354,1768587038621,-500.0,0.00015389,2]
[402195356,1768587038631,-500.0,0.00015389,2]
[402195358,1768587038641,-500.0,0.0001539,2]
[402195360,1768587038651,-500.0,0.0001539,2]
[402195362,1768587038660,-500.0,0.0001539,2]
[402195364,1768587038669,-509.17830873,0.0001539,2]
[402195366,1768587038679,-500.0,0.0001539,2]
[402195368,1768587038688,-500.0,0.0001539,2]
[402195370,1768587038698,-472.0,0.0001539,2]
[402195372,1768587038708,-500.0,0.0001539,2]
[402195374,1768587038718,-500.0,0.0001539,2]
[402195376,1768587038728,-150.0,0.0001539,2]
[402195378,1768587038737,-500.0,0.0001539,2]
[402195380,1768587038748,-150.0,0.0001539,2]
[402195383,1768587038757,-150.0,0.0001539,2]
[402195385,1768587038767,-500.0,0.0001539,2]
[402195387,1768587038776,-500.0,0.0001539,2]
[402195389,1768587038786,-500.0,0.0001539,2]
[402195391,1768587038796,-500.0,0.0001539,2]
[402195393,1768587038806,-87.26693933,0.00015444,2]
[402195396,1768587038828,-1151.73306067,0.00015444,2]
[402195398,1768587038838,-500.0,0.00015444,2]
[402195400,1768587038848,-500.0,0.00015444,2]
[402195402,1768587038857,-500.0,0.00015444,2]
[402195404,1768587038867,-500.0,0.00015445,2]
[402195406,1768587038877,-500.0,0.00015445,2]
[402195408,1768587038887,-500.0,0.00015445,2]
[402195410,1768587038897,-500.0,0.00015445,2]
[402195412,1768587038907,-355.74570306,0.00015445,2]
[402195414,1768587038917,-472.0,0.00015445,2]
[402195416,1768587038927,-298.72449475,0.00015445,2]
[402195421,1768587038964,-201.27550525,0.00015445,2]
[402195423,1768587038975,-500.0,0.00015445,2]
[402195425,1768587038984,-150.0,0.00015445,2]
[402195427,1768587038994,-500.0,0.00015445,2]
[402195429,1768587039004,-150.0,0.00015445,2]
[402195431,1768587039015,-150.0,0.00015445,2]
[402195433,1768587039027,-500.0,0.00015445,2]
[402195435,1768587039037,-500.0,0.00015445,2]
[402195437,1768587039047,-500.0,0.00015445,2]
[402195439,1768587039057,-500.0,0.00015445,2]
[402195441,1768587039067,-151.0,0.00015447,2]
[402195443,1768587039077,-151.0,0.00015447,2]
[402195445,1768587039087,-166.66,0.00015461,2]
[402195447,1768587039097,-500.0,0.00015493,2]
[402195449,1768587039107,-200.0,0.00015498,2]
[402195451,1768587039117,-1239.0,0.00015499,2]
[402195454,1768587039127,-500.0,0.00015499,2]
[402195456,1768587039137,-274.65822694,0.00015499,2]
[402195457,1768587039146,-500.0,0.00015499,2]
[402195460,1768587039156,-500.0,0.00015499,2]
[402195461,1768587039166,-500.0,0.00015499,2]
[402195462,1768587039176,-500.0,0.00015499,2]
[402195463,1768587039185,-150.08464366,0.00015499,2]
[402195464,1768587039194,-150.0,0.00015499,2]
[402195465,1768587039203,-150.0,0.00015499,2]
[402195466,1768587039216,-500.0,0.00015499,2]
[402195467,1768587039225,-150.0,0.00015499,2]
[402195468,1768587039235,-212.87158647,0.00015499,2]
[402195469,1768587039244,-500.0,0.00015499,2]
[402195470,1768587039255,-150.0,0.00015499,2]
[402195471,1768587039264,-163.14656247,0.00015499,2]
[402195472,1768587039273,-500.0,0.00015499,2]
[402195473,1768587039283,-150.0,0.00015499,2]
[402195474,1768587039292,-500.0,0.00015499,2]
[402195475,1768587039301,-150.0,0.00015499,2]
[402195476,1768587039310,-500.0,0.00015499,2]
[402195477,1768587039320,-202.26906802,0.00015499,2]
[402195478,1768587039329,-419.0,0.00015499,2]
[402195479,1768587039339,-500.0,0.00015499,2]
[402195480,1768587039348,-500.0,0.00015499,2]
[402195481,1768587039358,-500.0,0.00015499,2]
[402195482,1768587039367,-472.0,0.00015499,2]
[402195483,1768587039376,-396.63086669,0.00015499,2]
[402195484,1768587039386,-500.0,0.00015499,2]
[402195485,1768587039395,-150.0,0.00015499,2]
[402195487,1768587039405,-500.0,0.00015499,2]
[402195488,1768587039415,-150.0,0.00015499,2]
[402195491,1768587039424,-173.82267168,0.00015499,2]
[402195493,1768587039433,-500.0,0.00015499,2]
[402195495,1768587039444,-457.79708825,0.00015499,2]
[402195497,1768587039455,-500.0,0.00015499,2]
[402195499,1768587039464,-500.0,0.000155,2]
[402195501,1768587039475,-303.17,0.000155,2]
[402195503,1768587039488,-360.85506102,0.00015504,2]
[402195518,1768587039606,-8639.14493898,0.00015504,2]
[402195521,1768587039616,-7657.76065295,0.00015504,2]
[402195523,1768587039625,-322.6107,0.00015504,2]
[402195525,1768587039634,-620.0,0.00015504,2]
[402195527,1768587039643,-174.61919142,0.00015504,2]
[402195529,1768587039652,-574.12855637,0.00015504,2]
[402195531,1768587039661,-500.0,0.00015504,2]
[402195534,1768587039669,-500.0,0.00015504,2]
[402195536,1768587039678,-151.0,0.00015504,2]
[402195538,1768587039687,-500.0,0.00015504,2]
[402195540,1768587039695,-302.88589932,0.00015504,2]
[402195542,1768587039704,-507.70133898,0.00015504,2]
[402195544,1768587039713,-548.44734466,0.00015504,2]
[402195546,1768587039722,-500.0,0.00015504,2]
[402195548,1768587039732,-500.0,0.00015504,2]
[402195551,1768587039741,-500.0,0.00015504,2]
[402195553,1768587039750,-500.0,0.00015504,2]
[402195555,1768587039759,-500.0,0.00015504,2]
[402195557,1768587039768,-500.0,0.00015504,2]
[402195559,1768587039777,-500.0,0.00015504,2]
[402195561,1768587039785,-225.11745891,0.00015504,2]
[402195563,1768587039794,-500.0,0.00015504,2]
[402195565,1768587039803,-250.0,0.00015504,2]
[402195567,1768587039812,-500.0,0.00015504,2]
[402195569,1768587039821,-250.0,0.00015504,2]
[402195572,1768587039829,-250.0,0.00015504,2]
[402195574,1768587039838,-500.0,0.00015504,2]
[402195576,1768587039847,-1239.0,0.00015504,2]
[402195578,1768587039857,-250.0,0.00015504,2]
[402195580,1768587039868,-500.0,0.00015504,2]
[402195582,1768587039878,-250.0,0.00015504,2]
[402195584,1768587039887,-500.0,0.00015504,2]
[402195586,1768587039896,-2000.0,0.00015504,2]
[402195588,1768587039905,-250.0,0.00015504,2]
[402195590,1768587039914,-2000.0,0.00015504,2]
[402195592,1768587039923,-250.0,0.00015504,2]
[402195594,1768587039932,-2000.0,0.00015504,2]
[402195597,1768587039942,-250.0,0.00015504,2]
[402195599,1768587039951,-2000.0,0.00015504,2]
[402195601,1768587039961,-250.0,0.00015504,2]
[402195603,1768587039971,-306.14380651,0.00015504,2]
[402195605,1768587039980,-2000.0,0.00015504,2]
[402195608,1768587039990,-250.0,0.00015504,2]
[402195610,1768587039999,-2000.0,0.00015504,2]
[402195612,1768587040008,-250.0,0.00015504,2]
[402195614,1768587040017,-2000.0,0.00015504,2]
[402195616,1768587040027,-2000.0,0.00015504,2]
[402195618,1768587040036,-2000.0,0.00015504,2]
[402195620,1768587040046,-2000.0,0.00015504,2]
[402195622,1768587040055,-2000.0,0.00015504,2]
[402195624,1768587040064,-250.0,0.00015504,2]
[402195626,1768587040074,-250.0,0.00015504,2]
[402195628,1768587040084,-250.0,0.00015504,2]
[402195630,1768587040093,-1000.0,0.00015504,2]
[402195632,1768587040103,-250.0,0.00015504,2]
[402195634,1768587040112,-1000.0,0.00015504,2]
[402195635,1768587040122,-250.0,0.00015504,2]
[402195638,1768587040132,-1000.0,0.00015504,2]
[402195640,1768587040141,-250.0,0.00015504,2]
[402195642,1768587040150,-1000.0,0.00015504,2]
[402195644,1768587040160,-250.0,0.00015504,2]
[402195646,1768587040170,-1000.0,0.00015504,2]
[402195648,1768587040179,-250.0,0.00015504,2]
[402195650,1768587040188,-1000.0,0.00015504,2]
[402195652,1768587040198,-250.0,0.00015504,2]
[402195654,1768587040208,-1000.0,0.00015504,2]
[402195655,1768587040222,-500.0,0.00015504,2]
[402195658,1768587040233,-250.0,0.00015504,2]
[402195660,1768587040242,-500.0,0.00015504,2]
[402195662,1768587040255,-1000.0,0.00015504,2]
[402195664,1768587040265,-250.0,0.00015504,2]
[402195666,1768587040275,-500.0,0.00015504,2]
[402195668,1768587040285,-1000.0,0.00015504,2]
[402195670,1768587040294,-500.0,0.00015504,2]
[402195672,1768587040304,-1000.0,0.00015504,2]
[402195674,1768587040315,-500.0,0.00015504,2]
[402195676,1768587040324,-1000.0,0.00015504,2]
[402195679,1768587040334,-500.0,0.00015504,2]
[402195681,1768587040343,-500.0,0.00015504,2]
[402195719,1768587040682,-500.0,0.00015504,2]
[402195721,1768587040692,-500.0,0.00015504,2]
[402195723,1768587040702,-500.0,0.00015504,2]
[402195725,1768587040711,-500.0,0.00015504,2]
[402195727,1768587040721,-18994.94483279,0.00015524,2]
[402195729,1768587040730,-182.92,0.00015544,2]
[402195731,1768587040739,-1239.0,0.00015554,2]
[402195733,1768587040748,-500.0,0.00015554,2]
[402195735,1768587040757,-500.0,0.00015554,2]
[402195737,1768587040766,-500.0,0.00015554,2]
[402195739,1768587040777,-500.0,0.00015554,2]
[402195741,1768587040786,-500.0,0.00015554,2]
[402195743,1768587040795,-150.0,0.00015554,2]
[402195745,1768587040805,-150.0,0.00015554,2]
[402195747,1768587040814,-500.0,0.00015554,2]
[402195749,1768587040823,-150.0,0.00015554,2]
[402195751,1768587040832,-500.0,0.00015554,2]
[402195753,1768587040841,-150.0,0.00015554,2]
[402195755,1768587040850,-154.20087313,0.00015554,2]
[402195757,1768587040859,-566.47954702,0.00015554,2]
[402195759,1768587040869,-500.0,0.00015554,2]
[402195761,1768587040878,-150.0,0.00015554,2]
[402195763,1768587040888,-500.0,0.00015554,2]
[402195765,1768587040897,-500.0,0.00015554,2]
[402195767,1768587040907,-451.79103501,0.00015554,2]
[402195769,1768587040916,-472.0,0.00015554,2]
[402195772,1768587040930,-500.0,0.00015554,2]
[402195774,1768587040939,-150.0,0.00015554,2]
[402195776,1768587040949,-500.0,0.00015554,2]
[402195778,1768587040958,-290.22964713,0.00015554,2]
[402195780,1768587040968,-268.16233582,0.00015554,2]
[402195782,1768587040980,-500.0,0.00015554,2]
[402195784,1768587040989,-500.0,0.00015554,2]
[402195786,1768587040999,-49204.27556215,0.00015603,2]
[402195788,1768587041008,-500.0,0.00015608,2]
[402195790,1768587041017,-1239.0,0.00015609,2]
[402195792,1768587041026,-500.0,0.00015609,2]
[402195794,1768587041035,-500.0,0.00015609,2]
[402195796,1768587041044,-500.0,0.00015609,2]
[402195798,1768587041054,-500.0,0.00015609,2]
[402195800,1768587041063,-500.0,0.00015609,2]
[402195802,1768587041073,-151.87494028,0.00015609,2]
[402195804,1768587041083,-150.0,0.00015609,2]
[402195806,1768587041092,-500.0,0.00015609,2]
[402195808,1768587041102,-150.0,0.00015609,2]
[402195810,1768587041111,-500.0,0.00015609,2]
[402195812,1768587041121,-150.0,0.00015609,2]
[402195814,1768587041132,-500.0,0.00015609,2]
[402195816,1768587041147,-150.0,0.00015609,2]
[402195818,1768587041157,-500.0,0.00015609,2]
[402195820,1768587041167,-500.0,0.00015609,2]
[402195823,1768587041176,-472.0,0.00015609,2]
[402195825,1768587041187,-500.0,0.00015609,2]
[402195827,1768587041196,-203.18208023,0.00015609,2]
[402195829,1768587041206,-500.0,0.00015609,2]
[402195831,1768587041219,-392.06877689,0.00015609,2]
[402195833,1768587041229,-848.7,0.00015609,2]
[402195835,1768587041238,-150.0,0.00015609,2]
[402195837,1768587041248,-500.0,0.0001563,2]
[402195839,1768587041258,-1239.0,0.00015663,2]
[402195841,1768587041267,-500.0,0.00015663,2]
[402195843,1768587041277,-502.19354674,0.00015663,2]
[402195845,1768587041287,-543.05466849,0.00015663,2]
[402195847,1768587041299,-500.0,0.00015663,2]
[402195849,1768587041309,-500.0,0.00015663,2]
[402195851,1768587041317,-288.44260857,0.00015663,2]
[402195853,1768587041328,-150.0,0.00015663,2]
[402195855,1768587041338,-500.0,0.00015663,2]
[402195857,1768587041347,-500.0,0.00015663,2]
[402195859,1768587041356,-182.90524255,0.00015663,2]
[402195861,1768587041366,-617.02286579,0.00015663,2]
[402195863,1768587041374,-255.61222443,0.00015663,2]
[402195865,1768587041383,-277.06054963,0.00015663,2]
[402195867,1768587041392,-500.0,0.00015664,2]
[402195869,1768587041402,-472.0,0.00015664,2]
[402195871,1768587041412,-500.0,0.00015664,2]
[402195873,1768587041421,-500.0,0.00015664,2]
[402195875,1768587041430,-1239.0,0.00015718,2]
[402195877,1768587041441,-500.0,0.00015718,2]
[402195879,1768587041450,-500.0,0.00015718,2]
[402195881,1768587041460,-638.60912758,0.00015718,2]
[402195883,1768587041470,-150.0,0.00015718,2]
[402195885,1768587041479,-500.0,0.00015718,2]
[402195887,1768587041491,-354.78193891,0.00015718,2]
[402195889,1768587041500,-500.0,0.00015719,2]
[402195891,1768587041510,-472.0,0.00015719,2]
[402195893,1768587041519,-171.04582461,0.00015719,2]
[402195895,1768587041528,-500.0,0.00015719,2]
[402195897,1768587041537,-500.9636083,0.00015773,2]
[402195899,1768587041546,-502.60324195,0.00015773,2]
[402195901,1768587041555,-512.65188463,0.00015773,2]
[402195903,1768587041565,-500.0,0.00015773,2]
[402195905,1768587041574,-500.0,0.00015773,2]
[402195907,1768587041584,-501.94559639,0.00015773,2]
[402195909,1768587041593,-500.0,0.00015773,2]
[402195911,1768587041602,-500.0,0.00015773,2]
[402195913,1768587041612,-500.0,0.00015773,2]
[402195915,1768587041621,-500.0,0.00015773,2]
[402195917,1768587041631,-500.0,0.00015773,2]
[402195920,1768587041653,-500.0,0.00015773,2]
[402195921,1768587041662,-500.0,0.00015773,2]
[402195923,1768587041671,-500.84549516,0.00015773,2]
[402195926,1768587041682,-500.0,0.00015773,2]
[402195928,1768587041692,-500.0,0.00015773,2]
[402195930,1768587041702,-501.87003292,0.00015773,2]
[402195932,1768587041711,-500.12167174,0.00015773,2]
[402195934,1768587041721,-500.0,0.00015773,2]
[402195936,1768587041731,-1239.0,0.00015773,2]
[402195938,1768587041740,-500.0,0.00015773,2]
[402195940,1768587041750,-500.0,0.00015773,2]
[402195942,1768587041759,-167.7508545,0.00015773,2]
[402195944,1768587041769,-500.0,0.00015773,2]
[402195946,1768587041778,-331.0,0.00015773,2]
[402195948,1768587041787,-472.0,0.00015773,2]
[402195950,1768587041797,-500.0,0.00015773,2]
[402195952,1768587041806,-166.66,0.00015787,2]
[402195954,1768587041815,-1239.0,0.00015828,2]
[402195956,1768587041825,-152.0,0.00015828,2]
[402195958,1768587041835,-500.0,0.00015828,2]
[402195960,1768587041844,-500.0,0.00015828,2]
[402195962,1768587041854,-472.0,0.00015828,2]
[402195964,1768587041864,-500.0,0.00015828,2]
[402195966,1768587041873,-182.92,0.00015853,2]
[402195968,1768587041883,-18994.94483279,0.00015863,2]
[402195970,1768587041892,-205.54732385,0.00015863,2]
[402195972,1768587041901,-1239.0,0.00015883,2]
[402195974,1768587041911,-500.0,0.00015883,2]
[402195976,1768587041920,-323.16053674,0.00015883,2]
[402195978,1768587041929,-472.0,0.00015883,2]
[402195980,1768587041939,-500.0,0.00015883,2]
[402195982,1768587041948,-848.7,0.00015883,2]
[402195984,1768587041958,-21500.0,0.000159,5]
[402195986,1768587041967,-1239.0,0.00015937,2]
[402195988,1768587041977,-500.0,0.00015937,2]
[402195990,1768587041987,-472.0,0.00015938,2]
[402195993,1768587041999,-500.0,0.00015938,2]
[402195995,1768587042008,-255.0,0.00015972,2]
[402195997,1768587042017,-1239.0,0.00015992,2]
[402195999,1768587042026,-472.0,0.00015993,2]
[402196001,1768587042036,-462.0,0.00015993,2]
[402196003,1768587042045,-500.0,0.00015999,2]
[402196005,1768587042054,-500.0,0.00015999,2]
[402196007,1768587042063,-500.0,0.00015999,2]
[402196009,1768587042073,-500.0,0.00015999,2]
[402196011,1768587042081,-500.0,0.00015999,2]
[402196013,1768587042091,-500.0,0.00015999,2]
[402196014,1768587042100,-500.0,0.00015999,2]
[402196017,1768587042109,-500.0,0.00015999,2]
[402196019,1768587042119,-500.0,0.00015999,2]
[402196021,1768587042128,-500.0,0.00015999,2]
[402196022,1768587042137,-500.0,0.00015999,2]
[402196025,1768587042146,-1239.0,0.00016047,2]
[402196027,1768587042155,-472.0,0.00016047,2]
[402196028,1768587042165,-595.37131296,0.00016052,2]
[402196030,1768587042173,-1239.0,0.00016102,2]
[402196032,1768587042183,-472.0,0.00016102,2]
[402196034,1768587042192,-166.66,0.00016113,2]
[402196036,1768587042202,-594.61669288,0.00016115,2]
[402196038,1768587042212,-500.0,0.00016115,2]
[402196040,1768587042224,-500.0,0.00016115,2]
[402196042,1768587042233,-500.0,0.00016115,2]
[402196044,1768587042242,-1239.0,0.00016157,2]
[402196046,1768587042251,-472.0,0.00016157,2]
[402196048,1768587042260,-848.7,0.00016157,2]
[402196050,1768587042269,-18994.94483279,0.00016203,2]
[402196052,1768587042278,-1239.0,0.00016211,2]
[402196054,1768587042288,-472.0,0.00016212,2]
[402196056,1768587042297,-8238.0,0.00016235,2]
[402196058,1768587042307,-250.0,0.00016247,2]
[402196060,1768587042316,-420.0,0.00016248,2]
[402196062,1768587042325,-1200.0,0.00016249,2]
[402196064,1768587042334,-1239.0,0.00016266,2]
[402196066,1768587042343,-472.0,0.00016267,2]
[402196068,1768587042352,-1000.0,0.00016321,2]
[402196070,1768587042361,-459.63746506,0.00016321,2]
[402196072,1768587042370,-234.02633366,0.00016321,2]
[402196074,1768587042379,-504.10221386,0.00016321,2]
[402196076,1768587042388,-1000.0,0.00016321,2]
[402196078,1768587042397,-1000.0,0.00016321,2]
[402196080,1768587042405,-1000.0,0.00016321,2]
[402196082,1768587042414,-1000.0,0.00016321,2]
[402196084,1768587042423,-494.41663554,0.00016321,2]
[402196086,1768587042432,-1002.20709128,0.00016321,2]
[402196088,1768587042441,-1000.0,0.00016321,2]
[402196090,1768587042450,-1000.0,0.00016321,2]
[402196092,1768587042459,-1239.0,0.00016321,2]
[402196094,1768587042469,-472.0,0.00016321,2]
[402196096,1768587042478,-1680.0,0.00016328,2]
[402196098,1768587042488,-250.0,0.00016328,2]
[402196100,1768587042497,-500.0,0.00016329,2]
[402196102,1768587042506,-2500.0,0.0001633,2]
[402196104,1768587042516,-600.0,0.0001633,2]
[402196106,1768587042525,-300.0,0.0001633,2]
[402196108,1768587042534,-5000.0,0.0001633,2]
[402196110,1768587042543,-195.0,0.0001633,2]
[402196112,1768587042552,-250.0,0.0001633,2]
[402196114,1768587042561,-193.0,0.0001633,2]
[402196116,1768587042570,-428.8048557,0.00016351,2]
[402196118,1768587042578,-205.54732385,0.00016373,2]
[402196120,1768587042587,-1239.0,0.00016376,2]
[402196122,1768587042597,-472.0,0.00016376,2]
[402196124,1768587042607,-1239.0,0.0001643,2]
[402196126,1768587042616,-472.0,0.00016431,2]
[402196128,1768587042624,-848.7,0.00016431,2]
[402196130,1768587042633,-500.0,0.00016437,2]
[402196132,1768587042642,-234.22420722,0.00016438,2]
[402196134,1768587042651,-858.80156084,0.00016438,2]
[402196136,1768587042660,-858.80156084,0.00016438,2]
[402196138,1768587042669,-858.80156084,0.00016438,2]
[402196141,1768587042679,-858.80156084,0.00016438,2]
[402196143,1768587042688,-858.80156084,0.00016438,2]
[402196145,1768587042697,-858.80156084,0.00016438,2]
[402196147,1768587042707,-858.80156084,0.00016438,2]
[402196149,1768587042717,-858.80156084,0.00016438,2]
[402196151,1768587042726,-858.80156084,0.00016438,2]
[402196153,1768587042736,-858.80156084,0.00016438,2]
[402196155,1768587042745,-858.80156084,0.00016438,2]
[402196157,1768587042754,-858.80156084,0.00016438,2]
[402196159,1768587042763,-858.80156084,0.00016438,2]
[402196161,1768587042772,-858.80156084,0.00016438,2]
[402196163,1768587042782,-858.80156084,0.00016438,2]
[402196165,1768587042791,-858.80156084,0.00016438,2]
[402196167,1768587042801,-858.80156084,0.00016438,2]
[402196169,1768587042811,-858.80156084,0.00016438,2]
[402196173,1768587042821,-858.80156084,0.00016438,2]
[402196177,1768587042830,-858.80156084,0.00016438,2]
[402196180,1768587042840,-858.80156084,0.00016438,2]
[402196182,1768587042849,-858.80156084,0.00016438,2]
[402196184,1768587042859,-858.80156084,0.00016438,2]
[402196186,1768587042868,-858.80156084,0.00016438,2]
[402196188,1768587042877,-858.80156084,0.00016438,2]
[402196190,1768587042887,-858.80156084,0.00016438,2]
[402196192,1768587042896,-858.80156084,0.00016438,2]
[402196194,1768587042906,-858.80156084,0.00016438,2]
[402196196,1768587042915,-858.80156084,0.00016438,2]
[402196198,1768587042924,-858.80156084,0.00016438,2]
[402196200,1768587042934,-858.80156084,0.00016438,2]
[402196203,1768587042944,-858.80156084,0.00016438,2]
[402196205,1768587042954,-858.80156084,0.00016438,2]
[402196206,1768587042963,-858.80156084,0.00016438,2]
[402196208,1768587042972,-858.80156084,0.00016438,2]
[402196210,1768587042981,-858.80156084,0.00016438,2]
[402196212,1768587042990,-858.80156084,0.00016438,2]
[402196214,1768587042999,-858.80156084,0.00016438,2]
[402196217,1768587043009,-858.80156084,0.00016438,2]
[402196219,1768587043019,-858.80156084,0.00016438,2]
[402196221,1768587043029,-858.80156084,0.00016438,2]
[402196223,1768587043038,-858.80156084,0.00016438,2]
[402196225,1768587043049,-858.80156084,0.00016438,2]
[402196227,1768587043058,-858.80156084,0.00016438,2]
[402196229,1768587043068,-858.80156084,0.00016438,2]
[402196231,1768587043078,-858.80156084,0.00016438,2]
[402196233,1768587043088,-858.80156084,0.00016438,2]
[402196235,1768587043097,-858.80156084,0.00016438,2]
[402196237,1768587043107,-858.80156084,0.00016438,2]
[402196239,1768587043116,-858.80156084,0.00016438,2]
[402196241,1768587043125,-858.80156084,0.00016438,2]
[402196243,1768587043135,-858.80156084,0.00016438,2]
[402196245,1768587043144,-858.80156084,0.00016438,2]
[402196247,1768587043153,-858.80156084,0.00016438,2]
[402196249,1768587043163,-858.80156084,0.00016438,2]
[402196251,1768587043173,-858.80156084,0.00016438,2]
[402196253,1768587043182,-858.80156084,0.00016438,2]
[402196254,1768587043192,-858.80156084,0.00016438,2]
[402196256,1768587043201,-858.80156084,0.00016438,2]
[402196258,1768587043211,-858.80156084,0.00016438,2]
[402196260,1768587043224,-858.80156084,0.00016438,2]
[402196262,1768587043234,-858.80156084,0.00016438,2]
[402196263,1768587043243,-858.80156084,0.00016438,2]
[402196264,1768587043251,-858.80156084,0.00016438,2]
[402196265,1768587043261,-858.80156084,0.00016438,2]
[402196266,1768587043270,-858.80156084,0.00016438,2]
[402196267,1768587043281,-840.13196169,0.00016438,2]
[402196268,1768587043291,-840.13196169,0.00016438,2]
[402196269,1768587043300,-840.13196169,0.00016438,2]
[402196270,1768587043309,-840.13196169,0.00016438,2]
[402196271,1768587043318,-840.13196169,0.00016438,2]
[402196272,1768587043328,-840.13196169,0.00016438,2]
[402196273,1768587043337,-840.13196169,0.00016438,2]
[402196274,1768587043346,-840.13196169,0.00016438,2]
[402196275,1768587043355,-840.13196169,0.00016438,2]
[402196276,1768587043364,-840.13196169,0.00016438,2]
[402196277,1768587043373,-840.13196169,0.00016438,2]
[402196278,1768587043382,-840.13196169,0.00016438,2]
[402196279,1768587043391,-840.13196169,0.00016438,2]
[402196280,1768587043400,-840.13196169,0.00016438,2]
[402196281,1768587043409,-840.13196169,0.00016438,2]
[402196282,1768587043418,-840.13196169,0.00016438,2]
[402196283,1768587043426,-840.13196169,0.00016438,2]
[402196284,1768587043435,-840.13196169,0.00016438,2]
[402196285,1768587043444,-840.13196169,0.00016438,2]
[402196286,1768587043453,-840.13196169,0.00016438,2]
[402196287,1768587043462,-840.13196169,0.00016438,2]
[402196288,1768587043471,-840.13196169,0.00016438,2]
[402196289,1768587043480,-840.13196163,0.00016438,2]
[402196290,1768587043489,-500.0,0.00016438,2]
[402196291,1768587043498,-166.66,0.00016438,2]
[402196292,1768587043507,-211.77117296,0.00016438,2]
[402196294,1768587043516,-155.21677592,0.00016439,2]
[402196296,1768587043525,-195.0,0.00016439,2]
[402196298,1768587043534,-300.0,0.00016439,2]
[402196300,1768587043543,-2500.0,0.00016439,2]
[402196302,1768587043552,-600.0,0.00016439,2]
[402196304,1768587043561,-300.0,0.00016439,2]
[402196306,1768587043571,-300.0,0.00016439,2]
[402196308,1768587043580,-195.0,0.00016439,2]
[402196310,1768587043590,-193.0,0.00016439,2]
[402196311,1768587043599,-165.03,0.0001644,2]
[402196313,1768587043608,-1000.0,0.00016481,2]
[402196315,1768587043617,-1249.03408,0.00016485,2]
[402196317,1768587043627,-472.0,0.00016486,2]
[402196319,1768587043635,-500.0,0.00016493,2]
[402196321,1768587043645,-260.7640722,0.00016523,2]
[402196323,1768587043654,-218.513697,0.00016539,2]
[402196325,1768587043663,-472.0,0.0001654,2]
[402196327,1768587043672,-18994.94483279,0.00016542,2]
[402196329,1768587043682,-500.0,0.00016548,2]
[402196331,1768587043691,-1000.0,0.00016557,2]
[402196333,1768587043700,-1000.0,0.00016586,2]
[402196335,1768587043710,-482.21642172,0.00016595,2]
[402196337,1768587043719,-617.40005154,0.000166,2]
[402196339,1768587043728,-500.0,0.00016602,2]
[402196341,1768587043738,-1000.0,0.00016614,2]
[402196343,1768587043748,-1000.0,0.00016628,2]
[402196345,1768587043758,-1000.0,0.00016647,2]
[402196347,1768587043767,-500.0,0.00016657,2]
[402196349,1768587043776,-1000.0,0.00016665,2]
[402196351,1768587043785,-848.7,0.00016705,2]
[402196353,1768587043795,-500.0,0.00016712,2]
[402196355,1768587043804,-1000.0,0.00016744,2]